[Event "Turkish Cup 2024"]
[Site "Denizli"]
[Date "2024.08.04"]
[Round "9"]
[White "Yasin, Hur"]
[Black "Hatirli, Ugur Can"]
[Result "1/2-1/2"]
[ECO "B43"]
[WhiteElo "1879"]
[BlackElo "1948"]
[Annotator "RC"]
[PlyCount "115"]
[EventDate "2024.08.01"]
[EventType "swiss"]
[EventCountry "TUR"]
[SourceTitle "playchess.com"]
[Source "ChessBase"]
[SourceQuality "1"]
[TimeControl "5400+30"]

1. e4 {[%emt 0:06:00]} c5 {[%emt 0:01:00]} 2. Nf3 {[%emt 0:00:30]} e6 {[%emt 0:00:00]} 3. d4 {[%emt 0:00:30]} cxd4 {[%emt 0:00:00]} 4. Nxd4 {[%emt 0:00:30]} a6 {[%emt 0:00:00]} 5. Nc3 {[%emt 0:01:30]} b5 {[%emt 0:01:00]} 6. a3 {[%emt 0:00:30]} Bb7 {[%emt 0:00:30]} 7. Bd3 {[%emt 0:00:30]} Nc6 {[%emt 0:01:30]} 8. Nxc6 {[%emt 0:01:30]} Bxc6 {[%emt 0:02:30]} 9. Bf4 {[%emt 0:00:30]} Ne7 {[%emt 0:00:30]} 10. Qe2 {[%emt 0:01:30]} Ng6 {[%emt 0:00:30]} 11. Bg3 {[%emt 0:00:30]} Be7 {[%emt 0:01:30]} 12. O-O {[%emt 0:02:30]} d6 {[%emt 0:08:30]} 13. f4 {[%emt 0:00:30]} O-O {[%emt 0:07:30]} 14. Qh5 {[%emt 0:00:30]} Bf6 {[%emt 0:05:30]} 15. Nd1 {[%emt 0:01:30]} Qb6+ {[%emt 0:03:30]} 16. Kh1 {[%emt 0:00:30]} Qb7 {[%emt 0:01:30]} 17. Qe2 {[%emt 0:02:30]} Rfe8 {[%emt 0:18:30]} 18. c3 {[%emt 0:00:30]} Rad8 {[%emt 0:02:30]} 19. Nf2 {[%emt 0:01:30]} Be7 {[%emt 0:03:30]} 20. Nh3 {[%emt 0:08:30]} Nf8 {[%emt 0:08:30]} 21. Rae1 {[%emt 0:00:30]} f6 {[%emt 0:03:30]} 22. Ng1 {[%emt 0:04:30]} e5 {[%emt 0:02:30]} 23. fxe5 {[%emt 0:11:30]} dxe5 {[%emt 0:00:30]} 24. Bb1 {[%emt 0:00:00]} Bd7 {[%emt 0:03:30]} 25. Ba2+ {[%emt 0:01:00]} Be6 {[%emt 0:00:00]} 26. Bxe6+ {[%emt 0:02:30]} Nxe6 {[%emt 0:00:00]} 27. Qg4 {[%emt 0:00:30]} Nf8 {[%emt 0:02:30]} 28. Nf3 {[%emt 0:00:30]} Qd7 {[%emt 0:01:30]} 29. Qh5 {[%emt 0:00:30]} Ng6 {[%emt 0:01:30]} 30. h4 {[%emt 0:01:30]} a5 {[%emt 0:03:29]} 31. Nh2 {[%emt 0:03:30]} b4 {[%emt 0:00:51]} 32. axb4 {[%emt 0:01:30]} axb4 {[%emt 0:00:06]} 33. Qf3 {[%emt 0:00:30]} bxc3 {[%emt 0:00:48]} 34. bxc3 {[%emt 0:00:30]} Nf8 {[%emt 0:03:18]} 35. Ng4 {[%emt 0:00:30]} Bc5 {[%emt 0:01:23]} 36. Rd1 {[%emt 0:02:30]} Qe6 {[%emt 0:03:39]} 37. h5 {[%emt 0:00:00]} h6 {[%emt 0:01:01]} 38. Bh4 {[%emt 0:02:00]} Nh7 {[%emt 0:01:37]} 39. Qg3 {[%emt 0:01:30]} Kh8 {[%emt 0:02:49]} 40. Rxd8 {[%emt 0:00:30]} Rxd8 {[%emt 0:00:41]} 41. Nxe5 {[%emt 0:00:30]} Rc8 {[%emt 0:04:29]} 42. Ng6+ {[%emt 0:01:30]} Kg8 {[%emt 0:00:01]} 43. e5 {[%emt 0:00:30]} fxe5 {[%emt 0:00:54]} 44. Re1 {[%emt 0:25:06]} e4 {[%emt 0:00:47]} 45. Qf4 {[%emt 0:01:28]} Re8 {[%emt 0:00:47]} 46. Qc7 {[%emt 0:09:35]} Bd6 {[%emt 0:01:38]} 47. Qb7 {[%emt 0:00:06]} e3 {[%emt 0:00:58]} 48. Qb6 {[%emt 0:00:35]} e2 {[%emt 0:00:36]} 49. Qb5 {[%emt 0:00:17]} Nf6 {[%emt 0:00:28]} 50. Bxf6 {[%emt 0:02:57]} gxf6 {[%emt 0:00:02]} 51. Qd3 {[%emt 0:00:00]} Bb8 {[%emt 0:00:54]} 52. Nh4 {[%emt 0:00:28]} Qe4 {[%emt 0:00:40]} 53. Qxe4 {[%emt 0:01:27]} Rxe4 {[%emt 0:00:02]} 54. Nf5 {[%emt 0:00:46]} Rf4 {[%emt 0:00:54]} 55. Ne3 {[%emt 0:00:25]} Re4 {[%emt 0:00:33]} 56. Nf5 {[%emt 0:01:12]} Rf4 {[%emt 0:00:13]} 57. Ne3 {[%emt 0:00:34]} Re4 {[%emt 0:00:22]} 58. Nf5 {[%emt 0:00:42]} 1/2-1/2

[Event "Turkish Cup 2024"]
[Site "Denizli"]
[Date "2024.08.04"]
[Round "9"]
[White "Zuberoglu, Ibrahim Berk"]
[Black "Ucar, Umut Can"]
[Result "1-0"]
[ECO "C50"]
[WhiteElo "1870"]
[BlackElo "1684"]
[Annotator "NA COMBH"]
[PlyCount "91"]
[EventDate "2024.08.01"]
[EventType "swiss"]
[EventCountry "TUR"]
[SourceTitle "playchess.com"]
[Source "ChessBase"]
[SourceQuality "1"]
[TimeControl "5400+30"]

1. e4 {[%emt 0:02:00]} e5 {[%emt 0:01:00]} 2. Nf3 {[%emt 0:00:30]} Nc6 {[%emt 0:00:00]} 3. Bc4 {[%emt 0:00:30]} Bc5 {[%emt 0:00:00]} 4. d3 {[%emt 0:00:30]} Nf6 {[%emt 0:00:00]} 5. O-O {[%emt 0:00:30]} h6 {[%emt 0:00:00]} 6. Re1 {[%emt 0:01:30]} d6 {[%emt 0:00:00]} 7. a4 {[%emt 0:00:00]} a6 {[%emt 0:01:00]} 8. c3 {[%emt 0:03:00]} O-O {[%emt 0:01:30]} 9. Bb3 {[%emt 0:02:30]} Re8 {[%emt 0:02:30]} 10. Nbd2 {[%emt 0:01:30]} Be6 {[%emt 0:01:30]} 11. Bc2 {[%emt 0:03:30]} d5 {[%emt 0:00:30]} 12. b4 {[%emt 0:04:30]} Ba7 {[%emt 0:00:30]} 13. Bb2 {[%emt 0:01:30]} dxe4 {[%emt 0:00:30]} 14. Nxe4 {[%emt 0:01:30]} Nxe4 {[%emt 0:00:00]} 15. Rxe4 {[%emt 0:01:30]} Bf5 {[%emt 0:01:00]} 16. Re1 {[%emt 0:01:30]} f6 {[%emt 0:03:30]} 17. Nh4 {[%emt 0:04:30]} Bh7 {[%emt 0:00:30]} 18. Bb3+ {[%emt 0:07:30]} Kh8 {[%emt 0:00:30]} 19. Bf7 {[%emt 0:02:30]} Re7 {[%emt 0:00:30]} 20. Ng6+ {[%emt 0:00:30]} Bxg6 {[%emt 0:00:30]} 21. Bxg6 {[%emt 0:00:30]} Rd7 {[%emt 0:00:30]} 22. Bf5 {[%emt 0:00:30]} Rd6 {[%emt 0:02:30]} 23. Qh5 {[%emt 0:11:30]} Ne7 {[%emt 0:01:30]} 24. Be4 {[%emt 0:00:00]} c6 {[%emt 0:00:30]} 25. Re2 {[%emt 0:05:00]} b5 {[%emt 0:04:30]} 26. axb5 {[%emt 0:03:30]} axb5 {[%emt 0:01:30]} 27. Rae1 {[%emt 0:00:30]} Bb6 {[%emt 0:01:30]} 28. d4 {[%emt 0:03:30]} Re6 {[%emt 0:07:30]} 29. Qh3 {[%emt 0:08:30]} Qc8 {[%emt 0:15:30]} 30. Bb1 {[%emt 0:03:30]} Rd6 {[%emt 0:07:30]} 31. Qd3 {[%emt 0:01:30]} g6 {[%emt 0:01:30]} 32. Qe4 {[%emt 0:01:30]} Re6 {[%emt 0:02:30]} 33. Qh4 {[%emt 0:00:30]} Qf8 {[%emt 0:04:30]} 34. Bc1 {[%emt 0:03:30]} Kh7 {[%emt 0:02:30]} 35. Qh3 {[%emt 0:05:17]} Rd6 {[%emt 0:00:30]} 36. Qg3 {[%emt 0:03:45]} Re6 {[%emt 0:03:30]} 37. Qh3 {[%emt 0:02:05]} Rd6 {[%emt 0:00:30]} 38. f4 {[%emt 0:00:00]} Nd5 {[%emt 0:04:30]} 39. fxe5 {[%emt 0:00:16]} fxe5 {[%emt 0:00:30]} 40. Rxe5 {[%emt 0:00:54]} Nxc3 {[%emt 0:00:30]} 41. Bxh6 {[%emt 0:02:50]} Bxd4+ {[%emt 0:06:30]} 42. Be3+ {[%emt 0:00:07]} Kg8 {[%emt 0:00:00]} 43. Bxd4 {[%emt 0:00:54]} Rxd4 {[%emt 0:05:00]} 44. Qxc3 {[%emt 0:00:09]} Rad8 {[%emt 0:00:30]} 45. Ba2+ {[%emt 0:01:49]} Kg7 {[%emt 0:00:30]} 46. Re7+ {[%emt 0:00:49]} 1-0

[Event "Turkish Cup 2024"]
[Site "Denizli"]
[Date "2024.08.04"]
[Round "9"]
[White "Selvi, Kaan"]
[Black "Yardimci, Can"]
[Result "1/2-1/2"]
[ECO "B24"]
[WhiteElo "1863"]
[BlackElo "1930"]
[Annotator "RC"]
[PlyCount "124"]
[EventDate "2024.08.01"]
[EventType "swiss"]
[EventCountry "TUR"]
[SourceTitle "playchess.com"]
[Source "ChessBase"]
[SourceQuality "1"]
[TimeControl "5400+30"]

1. e4 {[%emt 0:04:00]} c5 {[%emt 0:01:00]} 2. Nf3 {[%emt 0:00:30]} e6 {[%emt 0:00:30]} 3. d4 {[%emt 0:00:30]} cxd4 {[%emt 0:00:30]} 4. Nxd4 {[%emt 0:00:30]} Nf6 {[%emt 0:00:00]} 5. Nc3 {[%emt 0:02:30]} Nc6 {[%emt 0:00:00]} 6. g3 {[%emt 0:00:30]} d5 {[%emt 0:01:30]} 7. exd5 {[%emt 0:02:30]} exd5 {[%emt 0:00:30]} 8. Bg2 {[%emt 0:06:30]} Bg4 {[%emt 0:00:30]} 9. Qd3 {[%emt 0:00:30]} Bc5 {[%emt 0:02:30]} 10. Nxc6 {[%emt 0:00:30]} bxc6 {[%emt 0:00:00]} 11. O-O {[%emt 0:00:30]} O-O {[%emt 0:00:00]} 12. Na4 {[%emt 0:01:30]} Be7 {[%emt 0:05:30]} 13. Be3 {[%emt 0:02:30]} Qa5 {[%emt 0:03:30]} 14. b3 {[%emt 0:03:30]} Rfd8 {[%emt 0:04:30]} 15. Rfe1 {[%emt 0:04:30]} Be6 {[%emt 0:01:30]} 16. Rad1 {[%emt 0:07:30]} Rac8 {[%emt 0:02:30]} 17. Bd2 {[%emt 0:03:30]} Qb5 {[%emt 0:05:30]} 18. Bf1 {[%emt 0:02:30]} Qxd3 {[%emt 0:08:30]} 19. cxd3 {[%emt 0:01:30]} c5 {[%emt 0:03:30]} 20. Rc1 {[%emt 0:03:30]} Rd7 {[%emt 0:09:30]} 21. Be3 {[%emt 0:12:30]} Rdc7 {[%emt 0:02:30]} 22. Rc2 {[%emt 0:00:30]} Bd6 {[%emt 0:09:30]} 23. Rec1 {[%emt 0:08:30]} Nd7 {[%emt 0:02:30]} 24. Be2 {[%emt 0:00:00]} Bf5 {[%emt 0:02:30]} 25. Kg2 {[%emt 0:09:00]} h6 {[%emt 0:04:30]} 26. h3 {[%emt 0:02:30]} Re8 {[%emt 0:03:30]} 27. Nb2 {[%emt 0:04:39]} Nb6 {[%emt 0:11:50]} 28. Bg4 {[%emt 0:00:44]} Bxg4 {[%emt 0:00:52]} 29. hxg4 {[%emt 0:00:01]} Rec8 {[%emt 0:00:10]} 30. a4 {[%emt 0:02:27]} Be5 {[%emt 0:02:30]} 31. a5 {[%emt 0:01:32]} Bxb2 {[%emt 0:00:42]} 32. Rxb2 {[%emt 0:00:38]} Nd7 {[%emt 0:00:02]} 33. Rbc2 {[%emt 0:03:37]} a6 {[%emt 0:01:47]} 34. Bf4 {[%emt 0:00:50]} Rc6 {[%emt 0:02:14]} 35. Be3 {[%emt 0:00:45]} Kf8 {[%emt 0:00:37]} 36. b4 {[%emt 0:01:59]} c4 {[%emt 0:06:54]} 37. dxc4 {[%emt 0:00:10]} Rxc4 {[%emt 0:00:57]} 38. Rxc4 {[%emt 0:00:13]} dxc4 {[%emt 0:00:00]} 39. Bc5+ {[%emt 0:00:14]} Ke8 {[%emt 0:01:09]} 40. Rxc4 {[%emt 0:00:53]} Nxc5 {[%emt 0:00:10]} 41. bxc5 {[%emt 0:00:00]} Kd7 {[%emt 0:02:19]} 42. Rd4+ {[%emt 0:00:00]} Kc6 {[%emt 0:00:00]} 43. Rd6+ {[%emt 0:02:44]} Kb7 {[%emt 0:00:47]} 44. Rb6+ {[%emt 0:00:39]} Ka7 {[%emt 0:00:06]} 45. c6 {[%emt 0:00:39]} Rb8 {[%emt 0:00:16]} 46. c7 {[%emt 0:05:15]} Rc8 {[%emt 0:00:21]} 47. Rc6 {[%emt 0:00:31]} Kb7 {[%emt 0:00:30]} 48. Rb6+ {[%emt 0:00:30]} Ka7 {[%emt 0:00:00]} 49. Rd6 {[%emt 0:00:00]} Rxc7 {[%emt 0:00:00]} 50. f4 {[%emt 0:00:19]} Kb7 {[%emt 0:00:20]} 51. Rb6+ {[%emt 0:00:44]} Ka7 {[%emt 0:00:06]} 52. Kh3 {[%emt 0:00:16]} Rc5 {[%emt 0:00:44]} 53. Rd6 {[%emt 0:00:05]} Kb7 {[%emt 0:00:40]} 54. Rd7+ {[%emt 0:00:11]} Rc7 {[%emt 0:00:00]} 55. Rd6 {[%emt 0:00:31]} Rc6 {[%emt 0:00:00]} 56. Rd7+ {[%emt 0:02:37]} Rc7 {[%emt 0:00:20]} 57. Rd8 {[%emt 0:00:00]} Kc6 {[%emt 0:00:00]} 58. Rg8 {[%emt 0:00:45]} g6 {[%emt 0:01:49]} 59. Rb8 {[%emt 0:01:12]} Rb7 {[%emt 0:01:10]} 60. Rd8 {[%emt 0:00:36]} Kb5 {[%emt 0:01:57]} 61. Rd5+ {[%emt 0:00:05]} Kc6 {[%emt 0:00:58]} 62. Rd8 {[%emt 0:00:27]} Kb5 {[%emt 0:00:50]} 1/2-1/2

[Event "Turkish Cup 2024"]
[Site "Denizli"]
[Date "2024.08.04"]
[Round "9"]
[White "Var, Sefa"]
[Black "Yilmaz, Kerem Tuna"]
[Result "0-1"]
[ECO "E65"]
[WhiteElo "1841"]
[BlackElo "2025"]
[Annotator "RC"]
[PlyCount "72"]
[EventDate "2024.08.01"]
[EventType "swiss"]
[EventCountry "TUR"]
[SourceTitle "playchess.com"]
[Source "ChessBase"]
[SourceQuality "1"]
[TimeControl "5400+30"]

1. c4 {[%emt 0:05:00]} Nf6 {[%emt 0:02:00]} 2. g3 {[%emt 0:01:30]} g6 {[%emt 0:00:00]} 3. Bg2 {[%emt 0:01:30]} Bg7 {[%emt 0:01:00]} 4. Nc3 {[%emt 0:01:30]} O-O {[%emt 0:00:00]} 5. Nf3 {[%emt 0:03:30]} c5 {[%emt 0:02:00]} 6. O-O {[%emt 0:08:30]} Nc6 {[%emt 0:01:30]} 7. d4 {[%emt 0:06:30]} cxd4 {[%emt 0:00:00]} 8. Nxd4 {[%emt 0:00:00]} Ne5 {[%emt 0:06:00]} 9. b3 {[%emt 0:04:00]} d6 {[%emt 0:00:30]} 10. e4 {[%emt 0:04:30]} a6 {[%emt 0:02:30]} 11. h3 {[%emt 0:02:30]} Bd7 {[%emt 0:01:30]} 12. Be3 {[%emt 0:06:30]} Qa5 {[%emt 0:00:30]} 13. Rc1 {[%emt 0:07:30]} Rac8 {[%emt 0:02:30]} 14. Nde2 {[%emt 0:05:30]} Bc6 {[%emt 0:05:30]} 15. a4 {[%emt 0:06:30]} Ned7 {[%emt 0:05:30]} 16. Rb1 {[%emt 0:01:30]} Qc7 {[%emt 0:00:30]} 17. a5 {[%emt 0:06:30]} b6 {[%emt 0:03:30]} 18. axb6 {[%emt 0:01:30]} Nxb6 {[%emt 0:00:30]} 19. Qd2 {[%emt 0:00:30]} Ra8 {[%emt 0:03:30]} 20. Rfc1 {[%emt 0:00:00]} Qb7 {[%emt 0:01:30]} 21. Nd5 {[%emt 0:02:00]} Nbxd5 {[%emt 0:00:30]} 22. exd5 {[%emt 0:00:30]} Bd7 {[%emt 0:00:30]} 23. Nd4 {[%emt 0:00:30]} a5 {[%emt 0:01:30]} 24. Ra1 {[%emt 0:03:30]} Qb4 {[%emt 0:03:30]} 25. Qd3 {[%emt 0:01:30]} a4 {[%emt 0:01:30]} 26. Bd2 {[%emt 0:01:42]} Qb6 {[%emt 0:00:00]} 27. b4 {[%emt 0:00:41]} Nxd5 {[%emt 0:01:00]} 28. Bxd5 {[%emt 0:07:43]} Bxd4 {[%emt 0:10:30]} 29. c5 {[%emt 0:00:39]} dxc5 {[%emt 0:00:30]} 30. bxc5 {[%emt 0:03:07]} Qf6 {[%emt 0:00:30]} 31. Bxa8 {[%emt 0:01:41]} Qxf2+ {[%emt 0:02:30]} 32. Kh1 {[%emt 0:00:36]} Rxa8 {[%emt 0:00:00]} 33. Qe4 {[%emt 0:02:11]} Rc8 {[%emt 0:01:00]} 34. c6 {[%emt 0:01:13]} Qxd2 {[%emt 0:04:30]} 35. Rd1 {[%emt 0:02:09]} Bxc6 {[%emt 0:00:30]} 36. Qxc6 {[%emt 0:00:12]} Rxc6 {[%emt 0:00:30]} 0-1

[Event "Turkish Cup 2024"]
[Site "Denizli"]
[Date "2024.08.04"]
[Round "9"]
[White "Sozat, Arda"]
[Black "Demirci, Fatih"]
[Result "1-0"]
[ECO "B14"]
[WhiteElo "1836"]
[BlackElo "1885"]
[Annotator "NA RC"]
[PlyCount "117"]
[EventDate "2024.08.01"]
[EventType "swiss"]
[EventCountry "TUR"]
[SourceTitle "playchess.com"]
[Source "ChessBase"]
[SourceQuality "1"]
[TimeControl "5400+30"]

1. e4 {[%emt 0:05:00]} c6 {[%emt 0:02:00]} 2. d4 {[%emt 0:00:30]} d5 {[%emt 0:00:00]} 3. exd5 {[%emt 0:00:00]} cxd5 {[%emt 0:00:00]} 4. c4 {[%emt 0:00:00]} Nf6 {[%emt 0:00:00]} 5. Nc3 {[%emt 0:00:30]} Nc6 {[%emt 0:00:00]} 6. Nf3 {[%emt 0:00:00]} e6 {[%emt 0:09:30]} 7. c5 {[%emt 0:01:00]} Be7 {[%emt 0:02:30]} 8. Bb5 {[%emt 0:00:00]} O-O {[%emt 0:01:30]} 9. Bxc6 {[%emt 0:09:00]} bxc6 {[%emt 0:00:30]} 10. O-O {[%emt 0:00:30]} Nd7 {[%emt 0:08:30]} 11. Re1 {[%emt 0:00:30]} Qc7 {[%emt 0:04:30]} 12. Qc2 {[%emt 0:20:30]} e5 {[%emt 0:06:30]} 13. Nxe5 {[%emt 0:00:30]} Nxe5 {[%emt 0:00:30]} 14. dxe5 {[%emt 0:04:30]} Bxc5 {[%emt 0:02:30]} 15. Bd2 {[%emt 0:17:30]} Qb6 {[%emt 0:06:30]} 16. Be3 {[%emt 0:07:30]} Bxe3 {[%emt 0:15:30]} 17. Rxe3 {[%emt 0:00:30]} Re8 {[%emt 0:02:30]} 18. Na4 {[%emt 0:02:30]} Qc7 {[%emt 0:01:30]} 19. Rc1 {[%emt 0:04:30]} d4 {[%emt 0:03:30]} 20. Ree1 {[%emt 0:01:30]} Re6 {[%emt 0:17:15]} 21. Qc4 {[%emt 0:00:30]} Rg6 {[%emt 0:01:06]} 22. Qxd4 {[%emt 0:06:29]} Bh3 {[%emt 0:00:30]} 23. g3 {[%emt 0:00:08]} Rd8 {[%emt 0:02:12]} 24. Qe3 {[%emt 0:06:14]} Qd7 {[%emt 0:02:45]} 25. Nc3 {[%emt 0:00:39]} Qf5 {[%emt 0:01:00]} 26. Rcd1 {[%emt 0:02:06]} Re8 {[%emt 0:00:34]} 27. Qe4 {[%emt 0:02:32]} Qh5 {[%emt 0:00:32]} 28. Ne2 {[%emt 0:04:02]} Bf5 {[%emt 0:00:13]} 29. Qg2 {[%emt 0:01:03]} Bh3 {[%emt 0:03:07]} 30. Qe4 {[%emt 0:01:22]} Bf5 {[%emt 0:02:12]} 31. Qg2 {[%emt 0:00:03]} Bh3 {[%emt 0:00:35]} 32. Qe4 {[%emt 0:00:51]} Bf5 {[%emt 0:00:11]} 33. Qh1 {[%emt 0:02:35]} Qg5 {[%emt 0:02:54]} 34. f4 {[%emt 0:00:41]} Qe7 {[%emt 0:00:35]} 35. Qg2 {[%emt 0:01:17]} h5 {[%emt 0:00:52]} 36. h4 {[%emt 0:00:38]} Qb4 {[%emt 0:00:59]} 37. Nc3 {[%emt 0:00:44]} Rb8 {[%emt 0:01:48]} 38. Rd2 {[%emt 0:00:27]} Re8 {[%emt 0:01:16]} 39. Kh2 {[%emt 0:00:24]} Rg4 {[%emt 0:00:15]} 40. Re3 {[%emt 0:00:38]} Re6 {[%emt 0:00:29]} 41. Ne4 {[%emt 0:00:20]} Bxe4 {[%emt 0:01:13]} 42. Rd8+ {[%emt 0:00:01]} Kh7 {[%emt 0:00:21]} 43. Qxe4+ {[%emt 0:00:01]} Qxe4 {[%emt 0:00:21]} 44. Rxe4 {[%emt 0:00:01]} Re7 {[%emt 0:00:21]} 45. Red4 {[%emt 0:01:36]} Rb7 {[%emt 0:00:21]} 46. b3 {[%emt 0:00:24]} Rb5 {[%emt 0:00:39]} 47. Rc4 {[%emt 0:00:40]} Rb6 {[%emt 0:00:39]} 48. Rd7 {[%emt 0:00:48]} Ra6 {[%emt 0:00:12]} 49. a4 {[%emt 0:00:26]} Rb6 {[%emt 0:00:28]} 50. Rc3 {[%emt 0:00:21]} Kg8 {[%emt 0:00:44]} 51. Rxa7 {[%emt 0:00:42]} Rb4 {[%emt 0:00:17]} 52. Rd7 {[%emt 0:00:10]} Re4 {[%emt 0:01:01]} 53. Rd2 {[%emt 0:00:30]} g5 {[%emt 0:00:00]} 54. hxg5 {[%emt 0:00:00]} Kg7 {[%emt 0:00:28]} 55. a5 {[%emt 0:00:47]} Rb4 {[%emt 0:00:50]} 56. a6 {[%emt 0:00:16]} Rb6 {[%emt 0:00:35]} 57. Ra2 {[%emt 0:00:10]} h4 {[%emt 0:00:21]} 58. a7 {[%emt 0:00:53]} hxg3+ {[%emt 0:00:05]} 59. Kg2 {[%emt 0:00:00]} 1-0

[Event "Turkish Cup 2024"]
[Site "Denizli"]
[Date "2024.08.04"]
[Round "9"]
[White "Adiguzel, Hakan"]
[Black "Tahaoglu, Erkin"]
[Result "1/2-1/2"]
[ECO "B33"]
[WhiteElo "1821"]
[BlackElo "1916"]
[Annotator "RC"]
[PlyCount "101"]
[EventDate "2024.08.01"]
[EventType "swiss"]
[EventCountry "TUR"]
[SourceTitle "playchess.com"]
[Source "ChessBase"]
[SourceQuality "1"]
[TimeControl "5400+30"]

1. e4 {[%emt 0:06:00]} c5 {[%emt 0:01:00]} 2. Nf3 {[%emt 0:00:00]} Nc6 {[%emt 0:00:30]} 3. d4 {[%emt 0:00:00]} cxd4 {[%emt 0:00:30]} 4. Nxd4 {[%emt 0:00:00]} Nf6 {[%emt 0:00:00]} 5. Nc3 {[%emt 0:00:00]} e5 {[%emt 0:00:00]} 6. Ndb5 {[%emt 0:00:30]} d6 {[%emt 0:00:30]} 7. Bg5 {[%emt 0:00:00]} a6 {[%emt 0:00:00]} 8. Na3 {[%emt 0:00:00]} b5 {[%emt 0:00:00]} 9. Nd5 {[%emt 0:00:00]} Be7 {[%emt 0:00:30]} 10. Bxf6 {[%emt 0:00:00]} Bxf6 {[%emt 0:00:00]} 11. c3 {[%emt 0:00:30]} O-O {[%emt 0:00:00]} 12. Nc2 {[%emt 0:00:30]} Rb8 {[%emt 0:00:30]} 13. g3 {[%emt 0:00:30]} Bg5 {[%emt 0:02:30]} 14. Bg2 {[%emt 0:00:30]} Ne7 {[%emt 0:02:30]} 15. Ncb4 {[%emt 0:03:30]} Bb7 {[%emt 0:00:00]} 16. Nxe7+ {[%emt 0:00:00]} Qxe7 {[%emt 0:00:00]} 17. Nd5 {[%emt 0:00:00]} Qe6 {[%emt 0:00:30]} 18. h4 {[%emt 0:12:30]} Bh6 {[%emt 0:04:30]} 19. Bh3 {[%emt 0:01:30]} f5 {[%emt 0:01:30]} 20. Qb3 {[%emt 0:04:30]} Bxd5 {[%emt 0:01:30]} 21. Qxd5 {[%emt 0:00:00]} Qxd5 {[%emt 0:00:30]} 22. exd5 {[%emt 0:00:00]} g6 {[%emt 0:02:30]} 23. O-O {[%emt 0:03:30]} Rfc8 {[%emt 0:04:30]} 24. a3 {[%emt 0:01:30]} Kf7 {[%emt 0:09:30]} 25. h5 {[%emt 0:01:30]} a5 {[%emt 0:08:30]} 26. hxg6+ {[%emt 0:01:30]} hxg6 {[%emt 0:00:30]} 27. Rfd1 {[%emt 0:05:30]} e4 {[%emt 0:03:30]} 28. Bg2 {[%emt 0:02:30]} Kf6 {[%emt 0:03:30]} 29. Re1 {[%emt 0:02:30]} Rc5 {[%emt 0:02:30]} 30. Rad1 {[%emt 0:02:30]} b4 {[%emt 0:06:30]} 31. cxb4 {[%emt 0:17:30]} axb4 {[%emt 0:02:30]} 32. axb4 {[%emt 0:00:30]} Rc2 {[%emt 0:02:30]} 33. f3 {[%emt 0:04:30]} Bd2 {[%emt 0:02:30]} 34. Re2 {[%emt 0:04:30]} e3 {[%emt 0:00:30]} 35. Ra1 {[%emt 0:00:30]} Rb6 {[%emt 0:11:30]} 36. f4 {[%emt 0:02:30]} Rxb2 {[%emt 0:01:30]} 37. Ra8 {[%emt 0:02:30]} R2xb4 {[%emt 0:02:30]} 38. Bf3 {[%emt 0:00:30]} Rb1+ {[%emt 0:00:30]} 39. Kg2 {[%emt 0:00:00]} Rb8 {[%emt 0:02:30]} 40. Ra4 {[%emt 0:02:00]} Rh8 {[%emt 0:02:30]} 41. Ra6 {[%emt 0:00:30]} Rhh1 {[%emt 0:01:30]} 42. Rxd6+ {[%emt 0:00:30]} Ke7 {[%emt 0:00:30]} 43. Re6+ {[%emt 0:00:30]} Kf7 {[%emt 0:00:30]} 44. R2xe3 {[%emt 0:00:30]} Bxe3 {[%emt 0:02:51]} 45. Rxe3 {[%emt 0:00:00]} Rhe1 {[%emt 0:01:00]} 46. Be2 {[%emt 0:04:00]} Rb2 {[%emt 0:03:30]} 47. Kf2 {[%emt 0:00:30]} Rd1 {[%emt 0:00:05]} 48. Re5 {[%emt 0:01:30]} Rd4 {[%emt 0:00:29]} 49. Ke3 {[%emt 0:00:30]} Rbd2 {[%emt 0:01:55]} 50. g4 {[%emt 0:00:30]} fxg4 {[%emt 0:00:56]} 51. Bxg4 {[%emt 0:00:30]} 1/2-1/2

[Event "Turkish Cup 2024"]
[Site "Denizli"]
[Date "2024.08.04"]
[Round "9"]
[White "Sevig, Mert Can"]
[Black "Baylav, Can"]
[Result "1-0"]
[ECO "B22"]
[WhiteElo "1818"]
[BlackElo "2086"]
[Annotator "RC"]
[PlyCount "115"]
[EventDate "2024.08.01"]
[EventType "swiss"]
[EventCountry "TUR"]
[SourceTitle "playchess.com"]
[Source "ChessBase"]
[SourceQuality "1"]
[TimeControl "5400+30"]

1. e4 {[%emt 0:01:00]} c5 {[%emt 0:01:00]} 2. c3 {[%emt 0:00:00]} d5 {[%emt 0:01:30]} 3. exd5 {[%emt 0:00:00]} Nf6 {[%emt 0:00:00]} 4. Bb5+ {[%emt 0:06:30]} Nbd7 {[%emt 0:01:00]} 5. d4 {[%emt 0:04:30]} Nxd5 {[%emt 0:01:30]} 6. dxc5 {[%emt 0:00:30]} e6 {[%emt 0:11:30]} 7. c6 {[%emt 0:01:30]} bxc6 {[%emt 0:00:00]} 8. Bxc6 {[%emt 0:00:00]} Rb8 {[%emt 0:00:00]} 9. Bxd5 {[%emt 0:01:00]} exd5 {[%emt 0:00:00]} 10. Ne2 {[%emt 0:01:30]} Nf6 {[%emt 0:03:00]} 11. Nd4 {[%emt 0:09:30]} Qe7+ {[%emt 0:03:30]} 12. Be3 {[%emt 0:06:30]} Rxb2 {[%emt 0:03:30]} 13. O-O {[%emt 0:00:30]} Qc7 {[%emt 0:04:30]} 14. Re1 {[%emt 0:15:30]} Be7 {[%emt 0:00:30]} 15. Bf4 {[%emt 0:04:30]} Qc5 {[%emt 0:12:30]} 16. Bc1 {[%emt 0:02:30]} Rb7 {[%emt 0:00:30]} 17. Ba3 {[%emt 0:01:30]} Qb6 {[%emt 0:04:30]} 18. Nd2 {[%emt 0:07:30]} Qa6 {[%emt 0:01:30]} 19. Bc5 {[%emt 0:09:30]} Be6 {[%emt 0:00:30]} 20. N2b3 {[%emt 0:01:30]} O-O {[%emt 0:01:30]} 21. Nf5 {[%emt 0:04:30]} Bxc5 {[%emt 0:06:30]} 22. Nxc5 {[%emt 0:00:30]} Qb6 {[%emt 0:00:30]} 23. Nxb7 {[%emt 0:02:10]} Bxf5 {[%emt 0:00:00]} 24. Re5 {[%emt 0:03:45]} Be4 {[%emt 0:02:00]} 25. Re7 {[%emt 0:00:29]} Rb8 {[%emt 0:02:30]} 26. Qb3 {[%emt 0:04:03]} Qxb3 {[%emt 0:00:30]} 27. axb3 {[%emt 0:00:30]} Kf8 {[%emt 0:00:30]} 28. Rc7 {[%emt 0:00:09]} Ne8 {[%emt 0:00:00]} 29. Nc5 {[%emt 0:02:28]} Nxc7 {[%emt 0:02:00]} 30. Nd7+ {[%emt 0:00:02]} Ke7 {[%emt 0:00:30]} 31. Nxb8 {[%emt 0:00:01]} Kd6 {[%emt 0:00:00]} 32. Rxa7 {[%emt 0:00:25]} Bd3 {[%emt 0:00:00]} 33. Rb7 {[%emt 0:01:00]} Nb5 {[%emt 0:00:30]} 34. c4 {[%emt 0:01:18]} Nc3 {[%emt 0:00:30]} 35. cxd5 {[%emt 0:01:13]} Nxd5 {[%emt 0:00:30]} 36. Rxf7 {[%emt 0:00:36]} g5 {[%emt 0:00:30]} 37. Rd7+ {[%emt 0:01:33]} Kc5 {[%emt 0:00:30]} 38. Rg7 {[%emt 0:00:13]} h6 {[%emt 0:00:30]} 39. Nd7+ {[%emt 0:00:00]} Kd6 {[%emt 0:00:00]} 40. Nf8 {[%emt 0:01:26]} Nf4 {[%emt 0:00:00]} 41. Rd7+ {[%emt 0:01:13]} Ke5 {[%emt 0:00:30]} 42. g3 {[%emt 0:00:39]} Ne2+ {[%emt 0:00:00]} 43. Kf1 {[%emt 0:00:23]} Nd4+ {[%emt 0:00:00]} 44. Ke1 {[%emt 0:00:17]} Bf5 {[%emt 0:02:30]} 45. Rb7 {[%emt 0:00:49]} Nf3+ {[%emt 0:01:30]} 46. Ke2 {[%emt 0:00:58]} Nxh2 {[%emt 0:00:00]} 47. Rb5+ {[%emt 0:00:53]} Ke4 {[%emt 0:00:00]} 48. Rb4+ {[%emt 0:01:51]} Ke5 {[%emt 0:00:30]} 49. Rb6 {[%emt 0:00:00]} h5 {[%emt 0:00:30]} 50. f3 {[%emt 0:01:19]} g4 {[%emt 0:00:30]} 51. f4+ {[%emt 0:01:28]} Kd4 {[%emt 0:01:30]} 52. Rh6 {[%emt 0:00:50]} Nf3 {[%emt 0:00:30]} 53. Rxh5 {[%emt 0:00:25]} Ke4 {[%emt 0:01:30]} 54. b4 {[%emt 0:01:09]} Nd4+ {[%emt 0:01:30]} 55. Kf2 {[%emt 0:00:02]} Nb5 {[%emt 0:00:30]} 56. Ng6 {[%emt 0:00:59]} Nd6 {[%emt 0:00:30]} 57. Ne7 {[%emt 0:00:19]} Bd7 {[%emt 0:00:00]} 58. Rd5 {[%emt 0:00:12]} 1-0